{"text_format":"1","workbook":"xlsx","n_sheets":7,"sheets":["Master Data Sheet","Year 7 Presentation Sheet","Year 8 Presentation Sheet","Year 9 Presentation Sheet","Year 10 Presentation Sheet","Year 11 Presentation Sheet","Year 12 Presentation Sheet"],"not_rendered":{"charts":0,"images":2,"macros":1,"external_links":0,"defined_names":12,"comments":1,"pivot_tables":12},"unopened":[],"bounds":{"document_bytes":16777216,"sheet_cells":100000,"rows_first":2000,"rows_last":500,"rows_between":2000,"halvings":0,"cell_chars":16384,"cell_head_chars":4096},"cells_cut":0,"cells_raw":0,"read":"whole","date_system":"1900"}

{"sheet":"Master Data Sheet","index":0,"n_rows":75,"n_cols":37,"rows_kept":75,"cut":false,"hidden":false,"merged":[[19,0,64,0],[5,8,6,8],[5,14,6,14],[5,20,6,20],[5,26,6,26],[16,0,17,0],[8,0,9,0],[5,32,6,32],[0,0,3,0],[1,2,2,4],[5,0,6,0],[5,2,6,2]]}
["Quick Guide \n",null,"Master data sheet "]
[null,null,"An example is provided in year 8 Master data sheet and presentation sheet for presentation purposes ONLY, please clear the data in the master data sheet prior to use."]
[]
[]
["Checklist\n\n\n\n"]
["g Clear the examples in Year 8 and fill in the inclusion tables (general items and subject \n     resources) keeping formatting consistency (e.g. capital letters and spacing)",null,"Year 7 ",null,null,null,null,null,"Year 8",null,null,null,null,null,"Year 9",null,null,null,null,null,"Year 10",null,null,null,null,null,"Year 11",null,null,null,null,null,"Year 12"]
[]
["gIn the General items column just type 'General items'"]
["g Remove blank table rows in the inclusion table (highlight the blank rows, right click and \n    press delete on the menu, then table rows)",null,"General Items","Resource","Type of Resource","Acquisition cost","Value (to parent)",null,"General Items","Resource","Type of Resource","Acquisition cost","Value (to parent)",null,"General Items","Resource","Type of Resource","Acquisition cost","Value (to parent)",null,"General Items","Resource","Type of Resource","Acquisition cost","Value (to parent)",null,"General Items","Resource","Type of Resource","Acquisition cost","Value (to parent)",null,"General Items","Resource","Type of Resource","Acquisition cost","Value (to parent)"]
[null,null,null,null,null,null,null,null,"General Items","Printing Credit","Owned",10,10,null,"General items","Printing Credit","Owned",10,10,null,"General items","Printing Credit","Owned",10,10,null,"General items","Printing Credit","Owned",10,10,null,"General items","Printing Credit","Owned",10,10]
["g Open the Presentation sheet of the cohort you are working on",null,"General items","Printing Credit","Owned",10,10,null,"General items","Laptop","Hired","Hired",400,null,"General items","Laptop","Hired","Hired",400]
["g Insert your school banner in the header (optional)",null,"Laptop","Laptop","Hired","hired",400]
["g Fill in the boxes in on the control panel on the presentation sheet",null,null,null,null,null,null,null,null,null,null,null,null,null,null,null,null,null,null,null,null,null,null,null,null,null," Subject","Resource","Type of Resource","Acquisition cost","Value (to parent)"]
["g Refresh the tables using the grey button on the control panel",null,null,null,null,null,null,null,"Subject","Resource","Type of Resource","Acquisition cost","Value (to parent)",null,null,null,null,null,null,null,"Subject","Resource","Type of Resource","Acquisition cost","Value (to parent)",null,"English","Dictionary","Hired",34.950000000000003,11.65,null,"Subject","Resource","Type of Resource","Acquisition cost","Value (to parent)"]
["g Check the print preview and amend the print area if necessary",null,null,null,null,null,null,null,"English","Dictionary","Hired",34.950000000000003,11.65,null,"Subject","Resource","Type of Resource","Acquisition cost","Value (to parent)",null,"English","Romeo & Juliet Book","Hired",17.95,5.98,null,"English","Macbeth play  text","Hired",48.5,16.670000000000002,null,"English","Fahrenheit 451","Hired",15,3]
["g Print the Presentation sheet to a PDF using the button on the control panel",null,"Subject","Resource","Type of Resource","Acquisition cost","Value (to parent)",null,"English","Liars #1 : The truth app","Hired",15,5,null,"English","Catching Teller Crow","Hired",18,6,null,"English","Dictionary","Hired",34.950000000000003,11.65,null,"English ","Macbeth Textbook ","Hired",30,10,null,"English","Fahrenheit 451 DVD ","Hired ",18,3]
[null,null,"English ","Dictionary","Hired",34.950000000000003,11.65,null,"English","How to write what you want to say ","Hired",22,7,null,"English","Twelve Angry Men Book ","Hired",26.95,8.98,null,"English ","10 things I hate about you DVD","Hired",15,1,null,"English ","The Dry","Hired ",15,5,null,"English ","Beauty and the Beast DVD ","Hired ",18,3]
[null,null,"English ","Fairytale books - Bundle","Hired",100,33,null,"English ","Write that essay sentence cards and paragraph cards","Hired ",60,5,null,"English","Dictionary","Hired",39.950000000000003,11.65,null,"English","Tming of the Shrew book ","Hired",15,5,null,"English ","The Dry DVD","Hired",15,1,null,"English ","Twelfth Nigh Play text ","Hired ",21,7]
[null,null,"English ","How to write what you want to say","Hired",22,7,null,"English","Hunt for the wilderpeople (DVD)","Used",20,5,null,"English","Write that Essay Sentence and paragraph cards ","Hired",60,5,null,"English","Romeo and Juliet DVD","Hired",18,1,null,"English","Cambridge Essential English units","Hired ",45,10,null,"English ","Twelfth Night play textbook ","Hired",30,10]
["Key Terms and Definitions\n\nAcquisition cost\nThis column demonstrates to parents the price to acquire (either the school's cost to acquire or the cost that the parent would incur to acquire) the item/s that are included in the SRS.\n\nFor single item resources, e.g. textbooks, paint etc. the acquisition cost can be either the cost to purchase and freight the items or the cost for a parent to purchase the same item. \n\nFor grouped items, such as \"art supplies\", to demonstrate the cost benefit to parents it would be in a schools best interest to use the list of supplies that non-participating parents would receive and determine the cost that a parent would be required to outlay for these items\n\nSubject\nThe name of the class such as English or Maths that the resource is used in.\n\nGeneral items \nThese SRS inclusions are not subject specific items and apply to all students. General items may include (though are not exclusive to) a student ID card, a printing allowance, a school diary and an administration fee. Under the general items column just enter 'General items'\n\nMaster data sheet \nThis is the worksheet where you will enter the SRS inclusions data. This is the sheet where your SRS information is stored.\n\nPresentation sheet\nThis is the worksheet that will be used to present SRS inclusions to parents. The SRS inclusion data in this sheet is fed from the Master data sheet.\n\nResource\nThe name of each individual resource or grouping of resources (one per line) associated with the subject/general item in the left hand column.\n\nType of resource\nThis describes whether the SRS inclusion is hired to the student (e.g. a textbook), owned by the student (e.g. a student diary) or used by the student (e.g. paint). \n\nValue (to parent)\nThis column demonstrates the direct value that the SRS provides to parents.\n\nFor single item resources, e.g. textbooks, this column will be the \"acquisition cost\" divided by the number of years that the resource will be hired to students.\n\nFor grouped items, such as \"art supplies\" this column should reflect the cost as purchased by the school divided by the number of students in the cohort to determine a price per student cost.  \n",null,"English ","Write that essay sentence cards","Hired",30,5,null,"English ","photocopying ","Used",5,5,null,"Maths","My Maths 9","Hired",37.72,12.57,null,"English","Shes the man DVD","Hired",18,1,null,"Maths","New Q Maths 11A","Hired",54,18,null,"Maths","New Q Maths 12A","Hired",54,18]
[null,null,"English ","Write that essay paragraph cards","Hired",30,5,null,"Maths","My Maths 8","Hired",37.72,12.57,null,"Maths","Pearson Math 9","Hired",54.95,18.32,null,"English","Frankenstein - graphic novel ","Hired ",30,10,null,"Maths","New Q Maths 11B","Hired",54,18,null,"Maths","New Q Maths 12B","Hired",54,18]
[null,null,"Maths","My Maths 7","Hired",37.72,12.57,null,"Maths","Pearson Maths 8","Hired",54.95,18.32,null,"Maths","Maths Quest 2","Hired",15,5,null,"English ","Write that Essay Paragraph cards ","Hired",30,1,null,"Maths","New Q Maths 11C","Hired",54,18,null,"Maths","New Q Maths 12C","Hired",54,18]
[null,null,"Science","Pearson 7 Science","Hired",54.95,18.32,null,"Maths","Maths Quest 1","Hired",15,5,null,"Science","Pearson Science 9","Hired",54.95,18.32,null,"Maths","My Maths 10","Hired",37.72,12.57,null,"Maths 11A","Future Maths 11A","Hired",45.39,15.13,null,"Maths 12A","Future Maths 12A","Hired",45.39,15.13]
[null,null,"Science","Science Quest 1","Hired",69.95,21.32,null,"LOTE - Japanese","Mirai 1 ","Hired",59.95,19.98,null,"Science","Science Quest 1","Hired",69.95,23.32,null,"Science","Pearson Science 10 ","Hired",54.95,18.32,null,"Maths 11B","Maths Quest 11B","Hired",49.95,16.649999999999999,null,"Maths 12A","Future Maths 11A","Hired",45.39,15.13]
[null,null,"Science","Science Quest 2","Hired",69.95,21.32,null,"HPE","photocopying ","Used ",5,5,null,"Science","Science Quest 2","Hired",69.95,23.32,null,"Science","Science Quest 1","Hired",69.95,23.32,null,"Science","Assorted books starting at $54.00","Hired",54,18,null,"Maths 12B","Maths Quest","Hired",49.95,16.649999999999999]
[null,null,"Science","Scienceworld 2","Hired",69.95,21.32,null,"Home Ec and Hospitality ","cooking ingredients ","Used",60,60,null,"Science","Scienceworld 2","Hired",69.95,23.32,null,"Science","Science Quest 2","Hired",69.95,23.32,null,"HPE","Photocopy and health consumables ","Used ",45,45,null,"Science","Assorted books starting at $54.00","Hired",54,18]
[null,null,"Science","Scienceworld 3","Hired",69.95,21.32,null,"Home Ec ","textiles","Used",35,35,null,"Science","Scienceworld 3","Hired",69.95,23.32,null,"Science","Scienceworld 2","Hired",69.95,23.32,null,"HPE","PE Senior Physical education ","Hired",84.95,28,null,"LOTE - Japanese","Mirai Course Book 5","Hired",29.05,9.68]
[null,null,"Science","Scienceworld 8","Hired",69.95,21.32,null,"Art","Artwise 1","Hired",84.95,28.32,null,"Science","Scienceworld 8","Hired",69.95,23.32,null,"Science","Scienceworld 3","Hired",69.95,23.32,null,"HPE","Senior PE digital textbook ","Used",30,30,null,"LOTE - Japanese","Mirai Activity Book 5","Hired",29.05,9.68]
[null,null,"Geography","Geography Alive 7 ","Hired",34.950000000000003,11.65,null,"Drama","Spitting Chips","Hired",23,7.67,null,"Histroy","Pearson History 9","Hired",62.95,20.98,null,"Science","Scienceworld 8","Hired",69.95,23.32,null,"Ancient History & Modern History","Chrionicles investigating the ancient world 1","Hired",57.95,19.32,null,"LOTE - Japanese","Mirai Course Book 6","Hired",29.05,9.68]
[null,null,"Geography","Jacaranda Atlas","Hired",79.95,26.65,null,"Drama","Fossils","Hired",23,7.67,null,"Geography","Geography Alive 9","Hired",34.950000000000003,11.65,null,"Science","Chemistry SCI 602","Hired",15,5,null,"Ancient History & Modern History","Chrionicles investigating the ancient world 2","Hired",57.95,19.32,null,"LOTE - Japanese","Mirai Activity Book 6","Hired",29.05,9.68]
[null,null,"History","Pearson History 7 ","Hired",62.95,20.98,null,"Drama","Hating Alison Ashley","Hired",19.95,6.65,null,"Geography","Jacaranda Atlas","Hired",51.96,17.32,null,"History","Pearson History 10","Hired",62.95,20.98,null,"Ancient History & Modern History","Ancient Rome: using evidence","Hired",69.95,23.32,null,"LOTE - Japanese","Japanese Dictionary","Hired",20.83,6.94]
[null,null,"LOTE - Japansese","Mirai 1","Hired",59.95,19.98,null,"Drama","Space Demons","Hired",16,5.33,null,"LOTE - Japanese","Mirai 2","Hired",59.95,19.98,null,"Geography","Geography Alive 10","Hired",34.950000000000003,11.65,null,"Ancient History & Modern History","Inquiry 1","Hired",94.95,31.65,null,"Ancient & Modern History","Chronicles investigating the ancient world 1","Hired",57.95,19.32]
[null,null,"Art","Artwise 1 ","Hired",89.95,29.98,null,"Drama","Juice","Hired",2.95,7.98,null,"Drama","Spitting Chips","Hired",23,7.67,null,"Geography","Jacaranda Atlas","Hired",51.96,17.32,null,"Ancient History & Modern History","Inquiry 2","Hired",94.95,31.65,null,"Ancient & Modern History","Chronicles investigating the ancient world 2","Hired",57.95,19.32]
[null,null,"DAT - Industrial Technology & Design","consumables ","Used",25,25,null,"Drama","Blurred","Hired",23.95,7.98,null,"Drama","Fossils","Hired",23,7.67,null,"LOTE - Japanese","Mirai 2","Hired",59.95,19.98,null,"Ancient History & Modern History","Global Voices 1","Hired",79.95,26.65,null,"Ancient & Modern History","Ancient Rome: using evidence","Hired",69.95,23.32]
[null,null,"HPE","consumables ","Used",5,5,null,"Drama","Waiting for Godot","Hired",24.95,8.32,null,"Drama","Hating Alison Ashley","Hired",19.95,6.65,null,"HPE","Photocopying ","Used ",5,5,null,"Ancient History & Modern History","Global Voices 2","Hired",79.95,26.65,null,"Ancient & Modern History","Inquiry 1","Hired",94.95,31.65]
[null,null,"Home Ec","textiles ","Used",35,35,null,"Drama","End Game","Hired",17,5.67,null,"Drama","Space Demons","Hired",16,5.33,null,"HEC/ Hospitality ","Cooking ingredients ","Used",60,60,null,"Geography","Jacaranda Atlas","Hired",51.96,17.32,null,"Ancient & Modern History","Inquiry 2","Hired",94.95,31.65]
[null,null,"Home Ec/Hospitality ","consumables ","Used ",60,60,null,"Drama","Eugene Ionesco Play Compilation","Hired",34,11.33,null,"Drama","Juice","Hired",23.95,7.98,null,"HEC","Photocopying ","Used",5,5,null,"Geography","Senior Geography 1","Hired",79.95,26.65,null,"Ancient & Modern History","Global voices 1","Hired",74.95,24.98]
[null,null,"Drama","Spitting Chips","Hired",23,7.67,null,"Drama","So Much to Tell You","Hired",13,4.33,null,"Drama","Blurred","Hired",23.95,7.98,null,"Music","Assorted Music Books ranging from $11.95","Hired",11.95,3.98,null,"Geography","Senior Geography 2","Hired",79.95,26.65,null,"Ancient & Modern History","Global voices 2","Hired",74.95,24.98]
[null,null,"Drama","Fossils","Hired",23,7.67,null,"Drama","Dags","Hired",23,7.67,null,"Drama","Waiting for Godot","Hired",24.95,8.32,null,"Drama","Hating Alison Ashley","Hired",19.95,6.65,null,"Music","Assorted Music Books ranging from $11.95 each","Hired",11.95,3.98,null,"Geography","Jacaranda Atlas","Hired",51.96,17.32]
[null,null,"Drama","Hating Alison Ashley","Hired",19.95,6.65,null,"Drama","Black Rock","Hired",23,7.67,null,"Drama","End Game","Hired",17,5.67,null,"Drama","Fossils","Hired",23,7.67,null,"Drama","48 Shades of Brown","Hired",23,7.67,null,"Geography","Senior Geography 1","Hired",79.95,26.65]
[null,null,"Drama","Space Demons","Hired",16,5.33,null,"Drama","Xstacy","Hired",23,7.67,null,"Drama","Eugene Ionesco Play Compilation","Hired",34,11.33,null,"Drama","Spitting chips","Hired",23,7.67,null,"Drama","Medea","Hired",9.9499999999999993,3.32,null,"Geography","Senior Geography 2","Hired",79.95,26.65]
[null,null,"Drama","Juice","Hired",23.95,7.98,null,"DAT","Workshop Consumables ","Used ",30,30,null,"Drama","So Much to Tell You","Hired",13,4.33,null,"Drama","Xstacy","Hired",23,7.67,null,"Drama","Indigenous Plays Compilation","Hired",34.950000000000003,11.65,null,"Music ","Assorted Music Books ranging from $11.95 each","Hired",11.95,3.98]
[null,null,"Drama","Blurred","Hired",23.95,7.98,null,"DAT - ETF","Consumables","Used",80,80,null,"Drama","Dags","Hired",23,7.67,null,"Drama","Blackrock","Hired",23,7.67,null,"Drama","Greek Plays Compilation","Hired",34.950000000000003,11.65,null,"Drama","48 Shades of Brown","Used",23,7.67]
[null,null,"Drama","Waiting for Godot","Hired",24.95,8.32,null,"Digital Technologies","consumables","Used",5,5,null,"Drama","Blackrock","Hired",23,7.67,null,"Drama","Dags","Hired",23,7.67,null,"Drama","Taming of the Shrew","Hired",17.95,5.98,null,"Drama","Medea","Used",9.9499999999999993,3.32]
[null,null,"Drama","End Game","Hired",17,5.67,null,"Digital technologies - FTS","consumables","Used",10,10,null,"Drama","Xstacy","Hired",23,7.67,null,"Drama","So Much to Tell You","Hired",13,4.33,null,"Drama","Midsummer Nights Dream","Hired",14.95,4.9800000000000004,null,"Drama","Indigenous Plays Compilation","Used",34.950000000000003,11.65]
[null,null,"Drama","Eugene Ionesco Play Compilation","Hired",34,11.33,null,"Music","Assorted Music Books ranging from $11.95 each","Hired",11.95,3.98,null,"Art","Artwise 1","Hired",84.95,28.32,null,"Drama","Eugene Ionesco Play Compilation","Hired",34,11.33,null,"Accounting","Accounting : an introductory framework","Hired",64.95,21.65,null,"Drama","Greek Plays Compilation","Used",34.950000000000003,11.65]
[null,null,"Drama","So Much to Tell You","Hired",13,4.33,null,"Geography","Geography Alive 8","Hired",34.950000000000003,11.65,null,"Art","Artwise 2","Hired",84.95,28.32,null,"Drama","End Game","Hired",17,5.67,null,"Legal Studies","Legal Studies for Queensland","Hired",77,25.67,null,"Drama","Taming of the Shrew","Used",17.95,5.98]
[null,null,"Drama","Dags","Hired",23,7.67,null,"Geography","Jacaranda Atlas","Hired",51.96,18.32,null,"Design and Technology DAT","workshop consumables ","Used",60,60,null,"Drama","Waiting for Godot","Hired",24.95,8.32,null,"Physics","New Century Senior Physics","Hired",109.95,36.65,null,"Drama","Midsummer Nights Dream","Used",14.95,4.9800000000000004]
[null,null,"Drama","Blackrock","Hired",23,7.67,null,"History","Pearson History 8","Hired",62.95,20.98,null,"Digital technologies","workshop materials ","Used",15,15,null,"Drama","Blurred","Hired",23.95,7.98,null,"Chemistry","Chemistry in Use","Hired",86.95,28.98,null,"Accounting","Accounting: an introductory framework","Hired",69.59,23.2]
[null,null,"Drama","Xstacy","Hired",23,7.67,null,"Film, Television & Media","Assorted movies & TV series","Used",15,0.6,null,"Music","Assorted Music Books ranging from $11.95 each","Hired",11.95,3.98,null,"Drama","Juice","Hired",23.95,7.98,null,"Chemistry","Foundations in Chemistry","Hired",34.5,11.5,null,"Legal Studies","Legal Studies for Queensland Book 1","Hired",77,25.67]
[null,null,"Music","Assorted Music Books ranging from $11.95 each  ","Hired",11.95,3.98,null,"Science","Pearson Science 8","Hired",54.95,18.32,null,"Online curriculum","Turnit itn, clickview, Daymap curriculum, Track Ed, Adobe, Ed perfect","Used",100,100,null,"Drama","Space Demons","Hired",16,5.33,null,"Recreation Studies","Australian First Aid","Hired",20,6.67,null,"Biology","Biology: a contextual approach","Hired",105.95,35.32]
[null,null,"Online curriculum","Turnit itn, clickview, Daymap curriculum, Track Ed, Adobe, Ed perfect","Used",100,100,null,"Science","Science Quest 1","Hired",69.95,23.32,null,null,null,null,null,{"$f":"SUM(Core_subjects3132026[Value (to parent)])","v":603.93000000000006},null,"Hair and Beauty","Consumables","Used",100,100,null,"Biology","Biology: a contextual approach","Hired",105.95,35.32,null,"Biology","Marine Science","Hired",77,25.67]
[null,null,null,null,null,null,{"$f":"SUM(Core_subjects313[Value (to parent)])","v":633.29999999999995},null,"Science","Science Quest 2","Hired",69.95,23.32,null,null,null,null,null,null,null,"Design and technology DAT","Consumable material ","Used",90,90,null,"Biology","Marine Science ","Hired",77,25.67,null,"Electrotechnology","Consumables ","Used",100,100]
[null,null,null,null,null,null,null,null,"Science","Scienceworld 2","Hired",69.95,23.32,null,null,null,null,null,null,null,"Design and Technology AMA","Consumable materials","Used",90,90,null,"Design and Technology - TTC","Consumable materials ","Used",250,250,null,"Year 12 TTC","Consumables","Used ",250,250]
[null,null,null,null,null,null,null,null,"Science","Scienceworld 3","Hired",69.95,23.32,null,null,null,null,null,null,null,"Digital Technologies ","Consumable materials","Used",15,15,null,"Design and Tech 1 day ","Consumable materials ","Used",150,150,null,"DAT - 1 Day program","consumables","Used",150,150]
[null,null,null,null,null,null,null,null,"Science","Scienceworld 8","Hired",69.95,23.32,null,null,null,null,null,null,null,"Art","Artwise 1","Hired",84.95,28.32,null,"Digital Tech - ICJ","Consumables ","Used",15,15,null,"Digital Technology - ICJ","consumables ","Used",20,20]
[null,null,null,null,null,null,null,null,"Online curriculum","Turnit itn, clickview, Daymap curriculum, Track Ed, Adobe, Ed perfect","Used",100,100,null,null,null,null,null,null,null,"Art","Artwise 2","Hired",84.95,28.32,null,"Dig Tech - electrotecnology","Wire, solder, resistors, screws and consumables","Used",150,150,null,"HPE","Photocopying /health consumables ","Used",25,25]
[null,null,null,null,null,null,null,null,"Total",null,null,null,{"$f":"SUM(Core_subjects31320[Value (to parent)])","v":734.23000000000036},null,null,null,null,null,null,null,"Online curriculum","Turnit in, Clickview, Daymap curriculum, Track Ed, Adobe, Ed perfect","Used",100,100,null,"LOTE - Japanese","Mirai Course Book 5","Hired",29.05,9.68,null,"HPE","PE Senior Physical Education","Hired",84.95,28.32]
[null,null,null,null,null,null,null,null,null,null,null,null,null,null,null,null,null,null,null,null,null,null,null,null,{"$f":"SUM(Core_subjects313202632[Value (to parent)])","v":880.61000000000013},null,"LOTE - Japanese","Mirai Activity Book 5","Hired",29.05,9.68,null,"HPE","Senior Digital tetbook ","Used ",30,30]
[null,null,null,null,null,null,null,null,null,null,null,null,null,null,null,null,null,null,null,null,null,null,null,null,null,null,"LOTE - Japanese","Mirai Course Book 6","Hired",29.05,9.68,null,"Home Economics","photocopying ","Used ",20,20]
[null,null,null,null,null,null,null,null,null,null,null,null,null,null,null,null,null,null,null,null,null,null,null,null,null,null,"LOTE - Japanese","Mirai Activity Book 6","Hired",29.05,9.68,null,"Home Ec/Hospitality ","cooking ingredients ","Used ",60,60]
[null,null,null,null,null,null,null,null,null,null,null,null,null,null,null,null,null,null,null,null,null,null,null,null,null,null,"LOTE - Japanese","Japanese Dictionary","Used ",20.83,0.83,null,"Hair and Beauty - Beauty ","Consumables","Used",700,700]
[null,null,null,null,null,null,null,null,null,null,null,null,null,null,null,null,null,null,null,null,null,null,null,null,null,null,"Tourism","The Road to Tourism","Hired",66.13,22.04,null,"Hair and Beauty - Nails","Consumables","Used",800,800]
[null,null,null,null,null,null,null,null,null,null,null,null,null,null,null,null,null,null,null,null,null,null,null,null,null,null,"Aquatic Practices","Marine Science ","Hired",77,25.67,null,"hair and Beauty - Hair","Consumables ","Used",500,500]
[null,null,null,null,null,null,null,null,null,null,null,null,null,null,null,null,null,null,null,null,null,null,null,null,null,null,"Maths","Graphics Calculator","Used ",179,7.16,null,"Physics","New Century Senior Physics","Hired",109.95,36.65]
["GST considerations\nWhile this document does not require GST inclusive and exclusive supply to be demonstrated, it is expected that schools comply with the GST requirements for charging fees to parents and maintain accurate information regarding the taxable supply of items.  For further information refer to the:  ",null,null,null,null,null,null,null,null,null,null,null,null,null,null,null,null,null,null,null,null,null,null,null,null,null,"Film, Television & Media","Assorted movies & TV series","Used ",15,0.6,null,"Aquatic Practices","Marine Science","Hired",77,25.67]
["     Administration of SRS and TRA guidelines",null,null,null,null,null,null,null,null,null,null,null,null,null,null,null,null,null,null,null,null,null,null,null,null,null,"Online Curriculum","Turnit it in, clickview, Daymap curriculum, Track Ed, Adobe, Ed perfect","Used",100,100,null,"Chemistry","Chemistry in Use 1","Hired",86.95,28.98]
["The Taxation information on OnePortal",null,null,null,null,null,null,null,null,null,null,null,null,null,null,null,null,null,null,null,null,null,null,null,null,null,null,null,null,null,{"$f":"SUM(Core_subjects31320263235[Value (to parent)])","v":1511.64},null,"Chemistry","Foundations in Chemistry","Hired",34.5,11.5]
[null,null,null,null,null,null,null,null,null,null,null,null,null,null,null,null,null,null,null,null,null,null,null,null,null,null,null,null,null,null,null,null,"English","Hamlet/ Macbeth DVD","Used",18,0.72]
[null,null,null,null,null,null,null,null,null,null,null,null,null,null,null,null,null,null,null,null,null,null,null,null,null,null,null,null,null,null,null,null,"English","Remember the Titans DVD","Used",18,0.72]
[null,null,null,null,null,null,null,null,null,null,null,null,null,null,null,null,null,null,null,null,null,null,null,null,null,null,null,null,null,null,null,null,"English","Bend it like Beckham DVD","Used",18,0.72]
[null,null,null,null,null,null,null,null,null,null,null,null,null,null,null,null,null,null,null,null,null,null,null,null,null,null,null,null,null,null,null,null,"Maths","Graphics Calculator","Hired",179,7.16]
[null,null,null,null,null,null,null,null,null,null,null,null,null,null,null,null,null,null,null,null,null,null,null,null,null,null,null,null,null,null,null,null,"Film, Television & Media","Assorted movies and TV series ","Used",15,0.6]
[null,null,null,null,null,null,null,null,null,null,null,null,null,null,null,null,null,null,null,null,null,null,null,null,null,null,null,null,null,null,null,null,"Online curriculum","Turnit itn, clickview, Daymap curriculum, Track Ed, Adobe, Ed perfect","Used",100,100]
[null,null,null,null,null,null,null,null,null,null,null,null,null,null,null,null,null,null,null,null,null,null,null,null,null,null,null,null,null,null,null,null,null,null,null,null,{"$f":"SUM(Core_subjects3132026323538[Value (to parent)])","v":3491.5399999999991}]

{"sheet":"Year 7 Presentation Sheet","index":1,"n_rows":153,"n_cols":7,"rows_kept":153,"cut":false,"hidden":false,"merged":[[6,6,9,10],[31,5,33,9],[20,5,24,5],[12,7,12,10],[14,7,14,10],[16,7,16,10],[3,0,3,1],[6,0,10,4],[6,5,8,5],[12,0,12,4],[13,0,16,4],[0,5,2,10],[3,5,4,5],[3,6,4,6],[63,0,64,4],[68,0,69,4],[34,0,37,4],[36,5,38,9],[38,0,42,4],[48,0,49,4],[50,0,51,4],[57,0,58,4],[59,2,59,3],[60,0,61,0],[60,1,61,1],[60,2,61,3],[20,6,24,10],[84,0,85,4],[89,0,90,4],[17,0,20,4],[72,0,75,4],[78,0,79,4],[82,0,83,4],[22,0,22,4],[24,0,25,4],[26,0,28,4],[29,0,31,4],[33,0,33,4],[53,0,54,4]]}
[null,null,null,null,null,"Control Panel - Fill in the white boxes  with the appropriate information and then press \"Refresh Tables\" below to populate your letter"]
[]
[null,null,null,"SRS ",2026]
["Dear Parents/Guardians,",null,null,null,null,"Insert the year that this SRS is offered:",2026]
[]
[]
["This letter includes important information about the fees and inclusions for the SRS . If you have previously opted in to the SRS your participation is assumed for the remainder of your child's enrolment, unless you inform the school otherwise by completing a new participation agreement form. If you are a new parent to the school, this information will assist you in making a decision as to whether you wish to participate in the SRS.",null,null,null,null,"Insert a sentence summarising the fee: ","2026 School Fees Year 7"]
[]
[]
[]
[]
[]
["What is provided by the Queensland Government?",null,null,null,null,"Cost of the SRS per student:",405]
["The Queensland Government supports children’s education by providing funding for instruction (teachers), facilities (school grounds and buildings, internet), and administration (staff to run the school). Funding for schools does not extend to individual student resources such as textbooks, equipment for personal use, and many items used by the student in the classroom."]
[null,null,null,null,null,"TRA allocated to student:",155]
[]
[null,null,null,null,null,"Full SRS fee due:",350]
["The SRS helps parents to source these resources. The school can purchase resources at lower rates due to its bulk buying power. Resources such as textbooks or musical instruments that will be used over a period of time are hired to students to further reduce costs for families. Participating in the SRS also offers a convenient way for parents to source the items that their child needs for school, and ensures that all students have access to the same standard of resources."]
[null,null,null,null,null,"Term instalment amount (over 3 terms):","$100, $125, $125"]
[]
[null,null,null,null,null,"Insert the name and contact details for the school contact for SRS queries:","Ipswich State High School - Finance 3813 4462"]
[]
["The types of resources that will be included are: "]
[]
["g Owned by the student – e.g. student diary – once provided, these items are retained by the \n       student and used at their discretion. "]
[]
["g Hired to the student for a specific duration of time – e.g. textbooks or musical instruments\n       –these items will need to be returned to the school in reasonable condition at the end of the hire  \n       period or if the student leaves the school. "]
[]
[]
["g Used in class – e.g. stationery, timber, material, workbooks – these items will be used in \n       class. Finished products that are created from these resources will generally come home with\n       the student."]
[]
[]
[]
["The Fee"]
[{"$f":"G7","v":"2026 School Fees Year 7"}]
[]
[]
[]
["If you are not satisfied that the SRS fee represents good value for money based on the inclusions (over the page), you may choose not to participate in the SRS. If that is the case, please complete a new Participation Agreement Form, indicating that you no longer wish to participate. If you choose not to participate, you will be provided with a detailed list of resources that you will need to provide for the student."]
[]
[]
[]
[]
[]
[]
[]
[]
["The TRA"]
["The Department of Education provides a Textbook and Resource Allowance (TRA) to assist parents with the cost of textbooks and other education resources for eligible Years 7 to 12 students. "]
[]
["For those students who are eligible to receive the TRA, the TRA will be applied to reduce the cost of participation as shown in the table below. Thus the SRS invoice you receive will be the full cost of participation in the SRS minus the TRA already held at the school. "]
[]
[]
["Please be aware that there may be two lines of charges on your invoice indicating the GST inclusive and GST exclusive fees depending on the resources supplied by the SRS ."]
[]
[]
["Cost Breakdown"]
["The diagrams below reflect how the TRA has been deducted from the SRS fee for eligible students who have opted in to the Curriculum SRS."]
[]
["Cost of SRS","TRA","SRS fee due"]
[{"$f":"G13","v":405},155,{"$f":"G17","v":350}]
[]
[]
["If you have opted to pay the SRS by term instalments you will be invoiced once per term, in the first three terms for :"]
[]
[{"$f":"G19","v":"$100, $125, $125"}]
[]
["Financial Difficulty"]
["If you would like to participate, but are experiencing financial difficulties, please contact the school to arrange an appointment to discuss options. Any information that you provide will be confidential."]
[]
[]
["Release of resources"]
["Resources will not be distributed until the full or first payment has been paid to the school. Any unpaid invoices, will be managed according to the department’s Debt Management Procedure and may result in the student being excluded from the scheme and/or from participating in extra-curricular activities until payments are made."]
[]
[]
[]
[]
["Return of hired resources"]
["A repair or replacement cost will be charged to the parent for any items that are damaged or not returned."]
[]
[]
["Contact us"]
["If you have any queries regarding the SRS and its inclusions, please contact and arrange an appointment with:\n                                                             "]
[]
[{"$f":"G21","v":"Ipswich State High School - Finance 3813 4462"}]
[]
[]
["The Curriculum Student Resource Scheme Inclusions "]
[]
["The Curriculum Student Resource Scheme (SRS) is made up of three components. The three components are general items, resources for core subjects and resources for elective subjects. The tables below detail the SRS inclusions for these three components."]
[]
[]
[]
["General Items","Resource","Type of Resource"," Acquisition cost","Value (to parent) "]
["General items","Student Diary","Owned",10,10]
[null,"Printing Credit","Owned",10,10]
["Grand Total",null,null,20,20]
[]
[]
[]
[]
[]
["Subject","Resource","Type of Resource","Acquisition cost "," Value (to parent)"]
["Art",null,null,89.95,29.98]
[null,"Artwise 1 ","Hired",89.95,29.98]
["Drama",null,null,287.79999999999995,95.940000000000012]
[null,"Spitting Chips","Hired",23,7.67]
[null,"Fossils","Hired",23,7.67]
[null,"Hating Alison Ashley","Hired",19.95,6.65]
[null,"Space Demons","Hired",16,5.33]
[null,"Juice","Hired",23.95,7.98]
[null,"Blurred","Hired",23.95,7.98]
[null,"Waiting for Godot","Hired",24.95,8.32]
[null,"End Game","Hired",17,5.67]
[null,"Eugene Ionesco Play Compilation","Hired",34,11.33]
[null,"So Much to Tell You","Hired",13,4.33]
[null,"Dags","Hired",23,7.67]
[null,"Blackrock","Hired",23,7.67]
[null,"Xstacy","Hired",23,7.67]
["Maths",null,null,37.72,12.57]
[null,"My Maths 7","Hired",37.72,12.57]
["Music",null,null,11.95,3.98]
[null,"Assorted Music Books ranging from $11.95 each  ","Hired",11.95,3.98]
["Science",null,null,404.7,124.91999999999999]
[null,"Pearson 7 Science","Hired",54.95,18.32]
[null,"Science Quest 1","Hired",69.95,21.32]
[null,"Science Quest 2","Hired",69.95,21.32]
[null,"Scienceworld 2","Hired",69.95,21.32]
[null,"Scienceworld 3","Hired",69.95,21.32]
[null,"Scienceworld 8","Hired",69.95,21.32]
["English ",null,null,216.95,61.65]
[null,"Dictionary","Hired",34.950000000000003,11.65]
[null,"Fairytale books - Bundle","Hired",100,33]
[null,"How to write what you want to say","Hired",22,7]
[null,"Write that essay sentence cards","Hired",30,5]
[null,"Write that essay paragraph cards","Hired",30,5]
["Geography",null,null,114.9,38.299999999999997]
[null,"Geography Alive 7 ","Hired",34.950000000000003,11.65]
[null,"Jacaranda Atlas","Hired",79.95,26.65]
["History",null,null,62.95,20.98]
[null,"Pearson History 7 ","Hired",62.95,20.98]
["LOTE - Japansese",null,null,59.95,19.98]
[null,"Mirai 1","Hired",59.95,19.98]
["Online curriculum",null,null,100,100]
[null,"Turnit itn, clickview, Daymap curriculum, Track Ed, Adobe, Ed perfect","Used",100,100]
["DAT - Industrial Technology & Design2",null,null,25,25]
[null,"consumables ","Used",25,25]
["HPE",null,null,5,5]
[null,"consumables ","Used",5,5]
["Home Ec",null,null,35,35]
[null,"textiles ","Used",35,35]
["Home Ec/Hospitality ",null,null,60,60]
[null,"consumables ","Used ",60,60]

{"sheet":"Year 8 Presentation Sheet","index":2,"n_rows":167,"n_cols":7,"rows_kept":167,"cut":false,"hidden":false,"merged":[[19,5,21,5],[19,6,21,10],[56,0,57,4],[52,0,54,4],[36,5,38,9],[16,0,20,4],[31,5,33,9],[22,0,22,4],[0,5,2,10],[3,0,3,1],[11,0,11,4],[12,0,15,4],[5,5,7,5],[5,6,8,10],[5,0,10,4],[92,0,93,4],[29,0,31,4],[34,0,37,4],[62,2,62,3],[63,0,64,0],[63,1,64,1],[81,0,82,4],[85,0,86,4],[66,0,67,4],[75,0,78,4],[38,0,42,4],[49,0,51,4],[87,0,88,4],[60,0,61,4],[63,2,64,3],[80,0,80,1],[71,0,72,4],[24,0,25,4],[26,0,28,4],[33,0,33,4]]}
[null,null,null,null,null,"Control Panel - Fill in the white boxes  with the appropriate information and then press \"Refresh Tables\" below to populate your letter"]
[]
[null,null,null,"SRS ",{"$f":"(G4)","v":2026}]
["Dear Parents/Guardians,",null,null,null,null,"Insert the year that this SRS is offered:",2026]
[]
["This letter includes important information about the fees and inclusions for the SRS . If you have previously opted in to the SRS your participation is assumed for the remainder of your child's enrolment, unless you inform the school otherwise by completing a new participation agreement form. If you are a new parent to the school, this information will assist you in making a decision as to whether you wish to participate in the SRS.",null,null,null,null,"Insert a sentence summarising the fee: ","2026 School Fees Yr 8"]
[]
[]
[]
[]
[null,null,null,null,null,"Cost of the SRS per student:",405]
["What is provided by the Queensland Government?"]
["The Queensland Government supports children’s education by providing funding for instruction (teachers), facilities (school grounds and buildings, internet), and administration (staff to run the school). Funding for schools does not extend to individual student resources such as textbooks, equipment for personal use, and many items used by the student in the classroom.",null,null,null,null,"TRA allocated to student:",155]
[]
[null,null,null,null,null,"Full SRS fee due:",250]
[]
["The SRS helps parents to source these resources. The school can purchase resources at lower rates due to its bulk buying power. Resources such as textbooks or musical instruments that will be used over a period of time are hired to students to further reduce costs for families. Participating in the SRS also offers a convenient way for parents to source the items that their child needs for school, and ensures that all students have access to the same standard of resources.",null,null,null,null,"Term instalment amount (over 3 terms):","$100, $75, $75"]
[]
[]
[null,null,null,null,null,"Insert here the name and contact details for the school contact for SRS queries:","Ipswich State High School  - Finance 3813 4462"]
[]
[]
["The types of resources that will be included are: "]
[]
["g Owned by the student – e.g. student diary – once provided, these items are \n       retained by the student and used at their discretion. "]
[]
["g Hired to the student for a specific duration of time – e.g. textbooks or musical \n       instruments–these items will need to be returned to the school in reasonable \n       condition at the end of the hire period or if the student leaves the school. "]
[]
[]
["g Used in class – e.g. stationery, timber, material, workbooks – these items will be \n       used in class. Finished products that are created from these resources will \n       generally come home with the student."]
[]
[]
[]
["The Fee"]
[{"$f":"G6","v":"2026 School Fees Yr 8"}]
[]
[]
[]
["If you are not satisfied that the SRS fee represents good value for money based on the inclusions (over the page), you may choose not to participate in the SRS. If that is the case, please complete a new Participation Agreement Form, indicating that you no longer wish to participate. If you choose not to participate, you will be provided with a detailed list of resources that you will need to provide for the student."]
[]
[]
[]
[]
[]
[]
[]
[]
[]
["The TRA"]
["The Department of Education provides a Textbook and Resource Allowance (TRA) to assist parents with the cost of textbooks and other education resources for eligible Years 7 to 12 students. "]
[]
[]
["For those students who are eligible to receive the TRA, the TRA will be applied to reduce the cost of participation as shown in the table below. Thus the SRS invoice you receive will be the full cost of participation in the SRS minus the TRA already held at the school."]
[]
[]
[]
["Please be aware that there may be two lines of charges on your invoice indicating the GST inclusive and GST exclusive fees depending on the resources supplied by the SRS ."]
[]
[]
["Cost Breakdown"]
["The diagrams below reflect how the TRA has been deducted from the SRS fee for eligible students who have opted in to the Curriculum SRS."]
[]
["Cost of SRS","TRA"," SRS fee due"]
[{"$f":"G11","v":405},{"$f":"G13","v":155},{"$f":"G15","v":250}]
[]
[]
["If you have opted to pay the SRS by term instalments you will be invoiced once per term , in the first three terms for :"]
[]
[{"$f":"G17","v":"$100, $75, $75"}]
[]
["Financial Difficulty"]
["If you would like to participate, but are experiencing financial difficulties, please contact the school to arrange an appointment to discuss options. Any information that you provide will be confidential."]
[]
[]
["Release of resources"]
["Resources will not be distributed until the full or first payment has been paid to the school. Any unpaid invoices, will be managed according to the department’s Debt Management Procedure and may result in the student being excluded from the scheme and/or from participating in extra-curricular activities until payments are made."]
[]
[]
[]
[]
["Return of hired resources"]
["A repair or replacement cost will be charged to the parent for any items that are damaged or not returned."]
[]
[]
["Contact us"]
["If you have any queries regarding the SRS and its inclusions, please contact and arrange an appointment with:\n                                                             "]
[]
[{"$f":"G20","v":"Ipswich State High School  - Finance 3813 4462"}]
[]
[]
["The Curriculum Student Resource Scheme Inclusions "]
[]
["The Curriculum Student Resource Scheme (SRS) is made up of three components. The three components are general items, resources for core subjects and resources for elective subjects. The tables below detail the SRS inclusions for these three components."]
[]
[]
["General Items","Resource","Type of Resource","Acquisition cost "," Value (to parent)"]
["General Items","Printing Credit","Owned",10,10]
[null,"Laptop","Hired",0,400]
["Grand Total",null,null,10,410]
[]
[]
[]
[]
[]
["Subject","Resource","Type of Resource"," Acquisition cost"," Value (to parent)"]
["English",null,null,91.95,28.65]
[null,"Dictionary","Hired",34.950000000000003,11.65]
[null,"Liars #1 : The truth app","Hired",15,5]
[null,"How to write what you want to say ","Hired",22,7]
[null,"Hunt for the wilderpeople (DVD)","Used",20,5]
["Maths",null,null,107.67,35.89]
[null,"My Maths 8","Hired",37.72,12.57]
[null,"Pearson Maths 8","Hired",54.95,18.32]
[null,"Maths Quest 1","Hired",15,5]
["Science",null,null,404.7,134.91999999999999]
[null,"Pearson Science 8","Hired",54.95,18.32]
[null,"Science Quest 1","Hired",69.95,23.32]
[null,"Science Quest 2","Hired",69.95,23.32]
[null,"Scienceworld 2","Hired",69.95,23.32]
[null,"Scienceworld 3","Hired",69.95,23.32]
[null,"Scienceworld 8","Hired",69.95,23.32]
["Art",null,null,84.95,28.32]
[null,"Artwise 1","Hired",84.95,28.32]
["Music",null,null,11.95,3.98]
[null,"Assorted Music Books ranging from $11.95 each","Hired",11.95,3.98]
["Drama",null,null,266.8,95.940000000000012]
[null,"Spitting Chips","Hired",23,7.67]
[null,"Fossils","Hired",23,7.67]
[null,"Hating Alison Ashley","Hired",19.95,6.65]
[null,"Space Demons","Hired",16,5.33]
[null,"Juice","Hired",2.95,7.98]
[null,"Blurred","Hired",23.95,7.98]
[null,"Waiting for Godot","Hired",24.95,8.32]
[null,"End Game","Hired",17,5.67]
[null,"Eugene Ionesco Play Compilation","Hired",34,11.33]
[null,"So Much to Tell You","Hired",13,4.33]
[null,"Dags","Hired",23,7.67]
[null,"Black Rock","Hired",23,7.67]
[null,"Xstacy","Hired",23,7.67]
["LOTE - Japanese",null,null,59.95,19.98]
[null,"Mirai 1 ","Hired",59.95,19.98]
["Geography",null,null,86.91,29.97]
[null,"Jacaranda Atlas","Hired",51.96,18.32]
[null,"Geography Alive 8","Hired",34.950000000000003,11.65]
["History",null,null,62.95,20.98]
[null,"Pearson History 8","Hired",62.95,20.98]
["Film, Television & Media",null,null,15,0.6]
[null,"Assorted movies & TV series","Used",15,0.6]
["Online curriculum",null,null,100,100]
[null,"Turnit itn, clickview, Daymap curriculum, Track Ed, Adobe, Ed perfect","Used",100,100]
["DAT",null,null,30,30]
[null,"Workshop Consumables ","Used ",30,30]
["English ",null,null,65,10]
[null,"photocopying ","Used",5,5]
[null,"Write that essay sentence cards and paragraph cards","Hired ",60,5]
["HPE",null,null,5,5]
[null,"photocopying ","Used ",5,5]
["Home Ec and Hospitality ",null,null,60,60]
[null,"cooking ingredients ","Used",60,60]
["Home Ec ",null,null,35,35]
[null,"textiles","Used",35,35]
["DAT - ETF",null,null,80,80]
[null,"Consumables","Used",80,80]
["Digital Technologies",null,null,5,5]
[null,"Consumables","Used",5,5]
["Digital technologies - FTS",null,null,10,10]
[null,"Consumables","Used",10,10]

{"sheet":"Year 9 Presentation Sheet","index":3,"n_rows":108,"n_cols":7,"rows_kept":108,"cut":false,"hidden":false,"merged":[[11,0,11,4],[12,0,15,4],[0,5,2,10],[3,0,3,1],[5,0,10,4],[5,5,7,5],[5,6,8,10],[30,0,32,4],[32,5,34,9],[34,0,34,4],[61,0,62,4],[16,0,21,4],[23,0,23,4],[25,0,26,4],[27,0,29,4],[19,5,23,5],[19,6,23,10],[53,0,55,4],[57,0,58,4],[72,0,73,4],[35,0,38,4],[37,5,39,9],[39,0,43,4],[50,0,52,4],[63,2,63,3],[64,0,65,0],[64,1,65,1],[64,2,65,3],[67,0,68,4],[76,0,79,4],[82,0,83,4],[86,0,87,4],[88,0,89,4],[93,0,94,4]]}
[null,null,null,null,null,"Control Panel - Fill in the white boxes  with the appropriate information and then press \"Refresh Tables\" below to populate your letter"]
[]
[null,null,null,"SRS ",{"$f":"(G4)","v":2026}]
["Dear Parents/Guardians,",null,null,null,"Year 9","Insert the year that this SRS is offered: ",2026]
[]
["This letter includes important information about the fees and inclusions for the SRS . If you have previously opted in to the SRS your participation is assumed for the remainder of your child's enrolment, unless you inform the school otherwise by completing a new participation agreement form. If you are a new parent to the school, this information will assist you in making a decision as to whether you wish to participate in the SRS.",null,null,null,null,"Insert a sentence summarising the fee: ","2026 School Fees Yr 9"]
[]
[]
[]
[]
[null,null,null,null,null,"Cost of SRS per student:",505]
["What is provided by the Queensland Government?"]
["The Queensland Government supports children’s education by providing funding for instruction (teachers), facilities (school grounds and buildings, internet), and administration (staff to run the school). Funding for schools does not extend to individual student resources such as textbooks, equipment for personal use, and many items used by the student in the classroom.",null,null,null,null,"TRA allocated to student:",155]
[]
[null,null,null,null,null,"Full SRS fee due:",350]
[]
["The SRS helps parents to source these resources. The school can purchase resources at lower rates due to its bulk buying power. Resources such as textbooks or musical instruments that will be used over a period of time are hired to students to further reduce costs for families. Participating in the SRS also offers a convenient way for parents to source the items that their child needs for school, and ensures that all students have access to the same standard of resources.",null,null,null,null,"Term instalment amount (over 3 terms):","$100; $125; $125"]
[]
[]
[null,null,null,null,null,"Insert here the name and contact details for the school contact for SRS queries:","Ipswich State High School - Finance 3813 4462"]
[]
[]
[]
["The types of resources that will be included are: "]
[]
["g Owned by the student – e.g. student diary – once provided, these items are \n       retained by the student and used at their discretion. "]
[]
["g Hired to the student for a specific duration of time – e.g. textbooks or musical \n       instruments–these items will need to be returned to the school in reasonable \n       condition at the end of the hire period or if the student leaves the school. "]
[]
[]
["g Used in class – e.g. stationery, timber, material, workbooks – these items will be \n       used in class. Finished products that are created from these resources will \n       generally come home with the student."]
[]
[]
[]
["The Fee"]
["2024 School Fees Year 9"]
[]
[]
[]
["If you are not satisfied that the SRS fee represents good value for money based on the inclusions (over the page), you may choose not to participate in the SRS. If that is the case, please complete a new Participation Agreement Form, indicating that you no longer wish to participate. If you choose not to participate, you will be provided with a detailed list of resources that you will need to provide for the student."]
[]
[]
[]
[]
[]
[]
[]
[]
[]
["The TRA"]
["The Department of Education provides a Textbook and Resource Allowance (TRA) to assist parents with the cost of textbooks and other education resources for eligible Years 7 to 12 students. "]
[]
[]
["For those students who are eligible to receive the TRA, the TRA will be applied to reduce the cost of participation as shown in the table below. Thus the SRS invoice you receive will be the full cost of participation in the SRS minus the TRA already held at the school."]
[]
[]
[]
["Please be aware that there may be two lines of charges on your invoice indicating the GST inclusive and GST exclusive fees depending on the resources supplied by the SRS ."]
[]
[]
["Cost Breakdown"]
["The diagrams below reflect how the TRA has been deducted from the SRS fee for eligible students who have opted in to the Curriculum SRS."]
[]
["Cost of SRS","TRA","SRS fee due"]
[{"$f":"G11","v":505},{"$f":"G13","v":155},{"$f":"G15","v":350}]
[]
[]
["If you have opted to pay the SRS by term instalments you will be invoiced once per term , in the first three terms for :"]
[]
[{"$f":"G17","v":"$100; $125; $125"}]
[]
["Financial Difficulty"]
["If you would like to participate, but are experiencing financial difficulties, please contact the school to arrange an appointment to discuss options. Any information that you provide will be confidential."]
[]
[]
["Release of resources"]
["Resources will not be distributed until the full or first payment has been paid to the school. Any unpaid invoices, will be managed according to the department’s Debt Management Procedure and may result in the student being excluded from the scheme and/or from participating in extra-curricular activities until payments are made."]
[]
[]
[]
[]
["Return of hired resources"]
["A repair or replacement cost will be charged to the parent for any items that are damaged or not returned."]
[]
[]
["Contact us"]
["If you have any queries regarding the SRS and its inclusions, please contact and arrange an appointment with:\n                                                             "]
[]
[{"$f":"G20","v":"Ipswich State High School - Finance 3813 4462"}]
[]
[]
["The Curriculum Student Resource Scheme Inclusions "]
[]
["The Curriculum Student Resource Scheme (SRS) is made up of three components. The three components are general items, resources for core subjects and resources for elective subjects. The tables below detail the SRS inclusions for these three components."]
[]
[]
[]
["General Items","Resource","Type of Resource"," Acquisition cost","Value (to parent) "]
["General items","Printing Credit","Owned",10,10]
[null,"Laptop","Hired",0,400]
["(blank)","(blank)","(blank)"]
["Grand Total",null,null,10,410]
[]
[]
[]
["Subject","Resource","Type of Resource","Acquisition cost ","Value (to parent) "]
["History"]
[null,"Pearson History 9","Hired",62.95,20.98]

{"sheet":"Year 10 Presentation Sheet","index":4,"n_rows":165,"n_cols":7,"rows_kept":165,"cut":false,"hidden":false,"merged":[[11,0,11,4],[3,0,3,1],[5,0,10,4],[5,5,7,5],[0,5,2,10],[5,6,8,10],[58,0,59,4],[20,0,20,4],[22,0,23,4],[12,0,15,4],[16,0,18,4],[60,2,60,3],[61,0,62,0],[61,1,62,1],[61,2,62,3],[64,0,65,4],[18,6,18,10],[90,0,91,4],[54,0,55,4],[73,0,76,4],[79,0,80,4],[83,0,84,4],[85,0,86,4],[24,0,26,4],[27,0,29,4],[31,0,31,4],[69,0,70,4],[32,0,35,4],[34,5,36,9],[36,0,40,4],[48,0,49,4],[50,0,52,4]]}
[null,null,null,null,null,"Control Panel - Fill in the white boxes  with the appropriate information and then press \"Refresh Tables\" below to populate your letter"]
[]
[null,null,null,"SRS ",{"$f":"(G4)","v":2025}]
["Dear Parents/Guardians,",null,null,null,null,"Insert the year that this SRS is offered:",2025]
[]
["This letter includes important information about the fees and inclusions for the SRS . If you have previously opted in to the SRS your participation is assumed for the remainder of your child's enrolment, unless you inform the school otherwise by completing a new participation agreement form. If you are a new parent to the school, this information will assist you in making a decision as to whether you wish to participate in the SRS.",null,null,null,null,"Insert a sentence summarising the fee: ","2026 School Fees Yr 10"]
[]
[]
[]
[]
[null,null,null,null,null,"Cost of the SRS per student:",405]
["What is provided by the Queensland Government?"]
["The Queensland Government supports children’s education by providing funding for instruction (teachers), facilities (school grounds and buildings, internet), and administration (staff to run the school). Funding for schools does not extend to individual student resources such as textbooks, equipment for personal use, and many items used by the student in the classroom.",null,null,null,null,"TRA allocated to student:",155]
[]
[null,null,null,null,null,"Full SRS fee due:",250]
[]
["The SRS helps parents to source these resources. The school can purchase resources at lower rates due to its bulk buying power. Resources such as textbooks or musical instruments that will be used over a period of time are hired to students to further reduce costs for families. Participating in the SRS also offers a convenient way for parents to source the items that their child needs for school, and ensures that all students have access to the same standard of resources.",null,null,null,null,"Term instalment amount (over 3 terms):","$100; $75: $75"]
[]
[null,null,null,null,null,"Insert here the name and contact details for the school contact for SRS queries:","Ipswich State High School - Finance 3813 4462"]
[]
["The types of resources that will be included are: "]
[]
["g Owned by the student – e.g. student diary – once provided, these items are \n       retained by the student and used at their discretion. "]
[]
["g Hired to the student for a specific duration of time – e.g. textbooks or musical \n       instruments–these items will need to be returned to the school in reasonable \n       condition at the end of the hire period or if the student leaves the school. "]
[]
[]
["g Used in class – e.g. stationery, timber, material, workbooks – these items will be \n       used in class. Finished products that are created from these resources will \n       generally come home with the student."]
[]
[]
[]
["The Fee"]
[{"$f":"G6","v":"2026 School Fees Yr 10"}]
[]
[]
[]
["If you are not satisfied that the SRS fee represents good value for money based on the inclusions (over the page), you may choose not to participate in the SRS. If that is the case, please complete a new Participation Agreement Form, indicating that you no longer wish to participate. If you choose not to participate, you will be provided with a detailed list of resources that you will need to provide for the student."]
[]
[]
[]
[]
[]
[]
[]
[]
[]
[]
["The TRA"]
["The Department of Education provides a Textbook and Resource Allowance (TRA) to assist parents with the cost of textbooks and other education resources for eligible Years 7 to 12 students."]
[]
["For those students who are eligible to receive the TRA, the TRA will be applied to reduce the cost of participation as shown in the table below. Thus the SRS invoice you receive will be the full cost of participation in the SRS minus the TRA already held at the school."]
[]
[]
[]
["Please be aware that there may be two lines of charges on your invoice indicating the GST inclusive and GST exclusive fees depending on the resources supplied by the SRS ."]
[]
[]
["Cost Breakdown"]
["The diagrams below reflect how the TRA has been deducted from the SRS fee for eligible students who have opted in to the Curriculum SRS."]
[]
["Cost of SRS","TRA","SRS fee due"]
[{"$f":"G11","v":405},{"$f":"G13","v":155},{"$f":"G15","v":250}]
[]
[]
["If you have opted to pay the SRS by term instalments you will be invoiced once per term , in the first three terms for :"]
[]
[{"$f":"G17","v":"$100; $75: $75"}]
[]
["Financial Difficulty"]
["If you would like to participate, but are experiencing financial difficulties, please contact the school to arrange an appointment to discuss options. Any information that you provide will be confidential."]
[]
[]
["Release of resources"]
["Resources will not be distributed until the full or first payment has been paid to the school. Any unpaid invoices, will be managed according to the department’s Debt Management Procedure and may result in the student being excluded from the scheme and/or from participating in extra-curricular activities until payments are made."]
[]
[]
[]
[]
["Return of hired resources"]
["A repair or replacement cost will be charged to the parent for any items that are damaged or not returned."]
[]
[]
["Contact us"]
["If you have any queries regarding the SRS and its inclusions, please contact and arrange an appointment with:\n                                                             "]
[]
[{"$f":"G19","v":"Ipswich State High School - Finance 3813 4462"}]
[]
[]
["The Curriculum Student Resource Scheme Inclusions "]
[]
["The Curriculum Student Resource Scheme (SRS) is made up of three components. The three components are general items, resources for core subjects and resources for elective subjects. The tables below detail the SRS inclusions for these three components."]
[]
[]
["General Items","Resource","Type of Resource","Acquisition cost "," Value (to parent)"]
["General items","Printing Credit","Owned",10,10]
["Grand Total",null,null,10,10]
[]
[]
[]
[]
[]
[]
["Subject","Resource","Type of Resource","Acquisition cost ","Value (to parent) "]
["Art",null,null,169.9,56.64]
[null,"Artwise 1","Hired",84.95,28.32]
[null,"Artwise 2","Hired",84.95,28.32]
["Drama",null,null,287.79999999999995,95.940000000000012]
[null,"Hating Alison Ashley","Hired",19.95,6.65]
[null,"Fossils","Hired",23,7.67]
[null,"Spitting chips","Hired",23,7.67]
[null,"Xstacy","Hired",23,7.67]
[null,"Blackrock","Hired",23,7.67]
[null,"Dags","Hired",23,7.67]
[null,"So Much to Tell You","Hired",13,4.33]
[null,"Eugene Ionesco Play Compilation","Hired",34,11.33]
[null,"End Game","Hired",17,5.67]
[null,"Waiting for Godot","Hired",24.95,8.32]
[null,"Blurred","Hired",23.95,7.98]
[null,"Juice","Hired",23.95,7.98]
[null,"Space Demons","Hired",16,5.33]
["English",null,null,133.9,34.630000000000003]
[null,"Dictionary","Hired",34.950000000000003,11.65]
[null,"Romeo & Juliet Book","Hired",17.95,5.98]
[null,"Tming of the Shrew book ","Hired",15,5]
[null,"Romeo and Juliet DVD","Hired",18,1]
[null,"Shes the man DVD","Hired",18,1]
[null,"Frankenstein - graphic novel ","Hired ",30,10]
["Maths",null,null,37.72,12.57]
[null,"My Maths 10","Hired",37.72,12.57]
["Music",null,null,11.95,3.98]
[null,"Assorted Music Books ranging from $11.95","Hired",11.95,3.98]
["Science",null,null,419.7,139.91999999999999]
[null,"Pearson Science 10 ","Hired",54.95,18.32]
[null,"Science Quest 1","Hired",69.95,23.32]
[null,"Science Quest 2","Hired",69.95,23.32]
[null,"Scienceworld 2","Hired",69.95,23.32]
[null,"Scienceworld 3","Hired",69.95,23.32]
[null,"Scienceworld 8","Hired",69.95,23.32]
[null,"Chemistry SCI 602","Hired",15,5]
["History",null,null,62.95,20.98]
[null,"Pearson History 10","Hired",62.95,20.98]
["Geography",null,null,86.91,28.97]
[null,"Geography Alive 10","Hired",34.950000000000003,11.65]
[null,"Jacaranda Atlas","Hired",51.96,17.32]
["LOTE - Japanese",null,null,59.95,19.98]
[null,"Mirai 2","Hired",59.95,19.98]
["Online curriculum",null,null,100,100]
[null,"Turnit in, Clickview, Daymap curriculum, Track Ed, Adobe, Ed perfect","Used",100,100]
["Hair and Beauty",null,null,100,100]
[null,"Consumables","Used",100,100]
["Design and technology DAT",null,null,90,90]
[null,"Consumable material ","Used",90,90]
["Design and Technology AMA",null,null,90,90]
[null,"Consumable materials","Used",90,90]
["Digital Technologies ",null,null,15,15]
[null,"Consumable materials","Used",15,15]
["English ",null,null,45,2]
[null,"10 things I hate about you DVD","Hired",15,1]
[null,"Write that Essay Paragraph cards ","Hired",30,1]
["HPE",null,null,5,5]
[null,"Photocopying ","Used ",5,5]
["HEC/ Hospitality ",null,null,60,60]
[null,"Cooking ingredients ","Used",60,60]
["HEC",null,null,5,5]
[null,"Photocopying ","Used",5,5]

{"sheet":"Year 11 Presentation Sheet","index":5,"n_rows":182,"n_cols":7,"rows_kept":182,"cut":false,"hidden":false,"merged":[[3,0,3,1],[5,0,10,4],[5,5,7,5],[0,5,2,10],[5,6,8,10],[11,0,11,4],[19,6,19,10],[21,0,21,4],[12,0,15,4],[16,0,19,4],[23,0,24,4],[25,0,27,4],[25,5,27,9],[28,0,30,4],[30,5,32,9],[32,0,32,4],[69,0,70,4],[33,0,36,4],[35,5,37,9],[37,0,41,4],[47,0,49,4],[60,2,60,3],[61,0,62,0],[61,1,62,1],[61,2,62,3],[64,0,65,4],[58,0,59,4],[50,0,52,4],[54,0,55,4],[73,0,76,4],[79,0,80,4],[83,0,84,4],[85,0,86,4],[90,0,91,4],[78,0,78,1]]}
[null,null,null,null,null,"Control Panel - Fill in the white boxes  with the appropriate information and then press \"Refresh Tables\" below to populate your letter"]
[]
[null,null,null,"SRS ",2024]
["Dear Parents/Guardians,",null,null,null,"Yr 11","Insert the year that this SRS is offered:",2026]
[]
["This letter includes important information about the fees and inclusions for the SRS . If you have previously opted in to the SRS your participation is assumed for the remainder of your child's enrolment, unless you inform the school otherwise by completing a new participation agreement form. If you are a new parent to the school, this information will assist you in making a decision as to whether you wish to participate in the SRS.",null,null,null,null,"Insert a sentence summarising the fee: ","2026 School Fees Yr 11"]
[]
[]
[]
[]
[null,null,null,null,null,"Cost of the SRS per student:",587]
["What is provided by the Queensland Government?"]
["The Queensland Government supports children’s education by providing funding for instruction (teachers), facilities (school grounds and buildings, internet), and administration (staff to run the school). Funding for schools does not extend to individual student resources such as textbooks, equipment for personal use, and many items used by the student in the classroom.",null,null,null,null,"TRA allocated to student:",337]
[]
[null,null,null,null,null,"Full SRS fee due:",250]
[]
["The SRS helps parents to source these resources. The school can purchase resources at lower rates due to its bulk buying power. Resources such as textbooks or musical instruments that will be used over a period of time are hired to students to further reduce costs for families. Participating in the SRS also offers a convenient way for parents to source the items that their child needs for school, and ensures that all students have access to the same standard of resources.",null,null,null,null,"Term instalment amount (over 3 terms):","$100; $125; $125 "]
[]
[]
[null,null,null,null,null,"Insert here the name and contact details for the school contact for SRS queries:","Ipswich State High School - Finance 3813 4462"]
[]
["The types of resources that will be included are: "]
[]
["g Owned by the student – e.g. student diary – once provided, these items are \n       retained by the student and used at their discretion. "]
[]
["g Hired to the student for a specific duration of time – e.g. textbooks or musical \n       instruments–these items will need to be returned to the school in reasonable \n       condition at the end of the hire period or if the student leaves the school. "]
[]
[]
["g Used in class – e.g. stationery, timber, material, workbooks – these items will be \n       used in class. Finished products that are created from these resources will \n       generally come home with the student."]
[]
[]
[]
["The Fee"]
[{"$f":"G6","v":"2026 School Fees Yr 11"}]
[]
[]
[]
["If you are not satisfied that the SRS fee represents good value for money based on the inclusions (over the page), you may choose not to participate in the SRS. If that is the case, please complete a new Participation Agreement Form, indicating that you no longer wish to participate. If you choose not to participate, you will be provided with a detailed list of resources that you will need to provide for the student."]
[]
[]
[]
[]
[]
[]
[]
[]
["The TRA"]
["The Department of Education provides a Textbook and Resource Allowance (TRA) to assist parents with the cost of textbooks and other education resources for eligible Years 7 to 12 students. "]
[]
[]
["For those students who are eligible to receive the TRA, the TRA will be applied to reduce the cost of participation as shown in the table below. Thus the SRS invoice you receive will be the full cost of participation in the SRS minus the TRA already held at the school."]
[]
[]
[]
["Please be aware that there may be two lines of charges on your invoice indicating the GST inclusive and GST exclusive fees depending on the resources supplied by the SRS ."]
[]
[]
["Cost Breakdown"]
["The diagrams below reflect how the TRA has been deducted from the SRS fee for eligible students who have opted in to the Curriculum SRS."]
[]
["Cost of SRS","TRA","SRS fee due"]
[587,{"$f":"G13","v":337},{"$f":"G15","v":250}]
[]
[]
["If you have opted to pay the SRS by term instalments you will be invoiced once per term, in the first three terms for :"]
[]
[{"$f":"G17","v":"$100; $125; $125 "}]
[]
["Financial Difficulty"]
["If you would like to participate, but are experiencing financial difficulties, please contact the school to arrange an appointment to discuss options. Any information that you provide will be confidential."]
[]
[]
["Release of resources"]
["Resources will not be distributed until the full or first payment has been paid to the school. Any unpaid invoices, will be managed according to the department’s Debt Management Procedure and may result in the student being excluded from the scheme and/or from participating in extra-curricular activities until payments are made."]
[]
[]
[]
[]
["Return of hired resources"]
["A repair or replacement cost will be charged to the parent for any items that are damaged or not returned."]
[]
[]
["Contact us"]
["If you have any queries regarding the SRS and its inclusions, please contact and arrange an appointment with:\n                                                             "]
[]
[{"$f":"G20","v":"Ipswich State High School - Finance 3813 4462"}]
[]
[]
["The Curriculum Student Resource Scheme Inclusions "]
[]
["The Curriculum Student Resource Scheme (SRS) is made up of three components. The three components are general items, resources for core subjects and resources for elective subjects. The tables below detail the SRS inclusions for these three components."]
[]
[]
["General Items","Resource","Type of Resource","Acquisition cost ","Value (to parent) "]
["General items"]
[null,"Printing Credit","Owned",10,10]
["Grand Total",null,null,10,10]
[]
[]
[]
[]
[" Subject","Resource","Type of Resource","Acquisition cost ","Value (to parent) "]
["Drama",null,null,135.75,45.25]
[null,"48 Shades of Brown","Hired",23,7.67]
[null,"Medea","Hired",9.9499999999999993,3.32]
[null,"Indigenous Plays Compilation","Hired",34.950000000000003,11.65]
[null,"Greek Plays Compilation","Hired",34.950000000000003,11.65]
[null,"Taming of the Shrew","Hired",17.95,5.98]
[null,"Midsummer Nights Dream","Hired",14.95,4.9800000000000004]
["English",null,null,128.44999999999999,38.32]
[null,"Dictionary","Hired",34.950000000000003,11.65]
[null,"Macbeth play  text","Hired",48.5,16.670000000000002]
[null,"Cambridge Essential English units","Hired ",45,10]
["Maths",null,null,341,61.16]
[null,"New Q Maths 11A","Hired",54,18]
[null,"New Q Maths 11B","Hired",54,18]
[null,"New Q Maths 11C","Hired",54,18]
[null,"Graphics Calculator","Used ",179,7.16]
["Music",null,null,11.95,3.98]
[null,"Assorted Music Books ranging from $11.95 each","Hired",11.95,3.98]
["Science",null,null,54,18]
[null,"Assorted books starting at $54.00","Hired",54,18]
["Maths 11A",null,null,45.39,15.13]
[null,"Future Maths 11A","Hired",45.39,15.13]
["Maths 11B",null,null,49.95,16.649999999999999]
[null,"Maths Quest 11B","Hired",49.95,16.649999999999999]
["HPE",null,null,159.94999999999999,103]
[null,"Photocopy and health consumables ","Used ",45,45]
[null,"PE Senior Physical education ","Hired",84.95,28]
[null,"Senior PE digital textbook ","Used",30,30]
["Ancient History & Modern History",null,null,535.65,178.56]
[null,"Chrionicles investigating the ancient world 1","Hired",57.95,19.32]
[null,"Chrionicles investigating the ancient world 2","Hired",57.95,19.32]
[null,"Ancient Rome: using evidence","Hired",69.95,23.32]
[null,"Inquiry 1","Hired",94.95,31.65]
[null,"Inquiry 2","Hired",94.95,31.65]
[null,"Global Voices 1","Hired",79.95,26.65]
[null,"Global Voices 2","Hired",79.95,26.65]
["Geography",null,null,211.86,70.62]
[null,"Jacaranda Atlas","Hired",51.96,17.32]
[null,"Senior Geography 1","Hired",79.95,26.65]
[null,"Senior Geography 2","Hired",79.95,26.65]
["Accounting",null,null,64.95,21.65]
[null,"Accounting : an introductory framework","Hired",64.95,21.65]
["Legal Studies",null,null,77,25.67]
[null,"Legal Studies for Queensland","Hired",77,25.67]
["Physics",null,null,109.95,36.65]
[null,"New Century Senior Physics","Hired",109.95,36.65]
["Chemistry",null,null,121.45,40.480000000000004]
[null,"Chemistry in Use","Hired",86.95,28.98]
[null,"Foundations in Chemistry","Hired",34.5,11.5]
["Recreation Studies",null,null,20,6.67]
[null,"Australian First Aid","Hired",20,6.67]
["Biology",null,null,182.95,60.99]
[null,"Biology: a contextual approach","Hired",105.95,35.32]
[null,"Marine Science ","Hired",77,25.67]
["LOTE - Japanese",null,null,137.03,39.549999999999997]
[null,"Mirai Course Book 5","Hired",29.05,9.68]
[null,"Mirai Activity Book 5","Hired",29.05,9.68]
[null,"Mirai Course Book 6","Hired",29.05,9.68]
[null,"Mirai Activity Book 6","Hired",29.05,9.68]
[null,"Japanese Dictionary","Used ",20.83,0.83]
["Tourism",null,null,66.13,22.04]
[null,"The Road to Tourism","Hired",66.13,22.04]
["Aquatic Practices",null,null,77,25.67]
[null,"Marine Science ","Hired",77,25.67]
["Film, Television & Media",null,null,15,0.6]
[null,"Assorted movies & TV series","Used ",15,0.6]
["Design and Technology - TTC",null,null,250,250]
[null,"Consumable materials ","Used",250,250]
["Design and Tech 1 day ",null,null,150,150]
[null,"Consumable materials ","Used",150,150]
["Digital Tech - ICJ",null,null,15,15]
[null,"Consumables ","Used",15,15]
["Dig Tech - electrotecnology",null,null,150,150]
[null,"Wire, solder, resistors, screws and consumables","Used",150,150]
["Online Curriculum",null,null,100,100]
[null,"Turnit it in, clickview, Daymap curriculum, Track Ed, Adobe, Ed perfect","Used",100,100]
["English ",null,null,60,16]
[null,"Macbeth Textbook ","Hired",30,10]
[null,"The Dry","Hired ",15,5]
[null,"The Dry DVD","Hired",15,1]

{"sheet":"Year 12 Presentation Sheet","index":6,"n_rows":193,"n_cols":7,"rows_kept":193,"cut":false,"hidden":false,"merged":[[3,0,3,1],[5,0,10,4],[5,5,7,5],[0,5,2,10],[5,6,8,10],[11,0,11,4],[16,5,17,5],[19,6,19,10],[21,0,21,4],[12,0,15,4],[16,0,19,4],[23,0,24,4],[25,0,27,4],[25,5,27,9],[28,0,30,4],[30,5,32,9],[32,0,32,4],[69,0,70,4],[33,0,36,4],[35,5,37,9],[37,0,41,4],[47,0,49,4],[50,0,52,4],[60,2,60,3],[61,0,62,0],[61,1,62,1],[61,2,62,3],[64,0,65,4],[58,0,59,4],[54,0,55,4],[73,0,76,4],[79,0,80,4],[83,0,84,4],[85,0,86,4],[90,0,91,4],[78,0,78,1]]}
[null,null,null,null,null,"Control Panel - Fill in the white boxes  with the appropriate information and then press \"Refresh Tables\" below to populate your letter"]
[]
[null,null,null,"SRS ",2026]
["Dear Parents/Guardians,",null,null,null,null,"Insert the year that this SRS is offered:",2026]
[]
["This letter includes important information about the fees and inclusions for the SRS . If you have previously opted in to the SRS your participation is assumed for the remainder of your child's enrolment, unless you inform the school otherwise by completing a new participation agreement form. If you are a new parent to the school, this information will assist you in making a decision as to whether you wish to participate in the SRS.",null,null,null,null,"Insert a sentence summarising the fee: ","2026 School Fees Yr 12"]
[]
[]
[]
[]
[null,null,null,null,null,"Cost of the SRS per student:",587]
["What is provided by the Queensland Government "]
["The Queensland Government supports children’s education by providing funding for instruction (teachers), facilities (school grounds and buildings, internet), and administration (staff to run the school). Funding for schools does not extend to individual student resources such as textbooks, equipment for personal use, and many items used by the student in the classroom.",null,null,null,null,"TRA allocated to student:",337]
[]
[null,null,null,null,null,"Full SRS fee due:",250]
[]
["The SRS helps parents to source these resources. The school can purchase resources at lower rates due to its bulk buying power. Resources such as textbooks or musical instruments that will be used over a period of time are hired to students to further reduce costs for families. Participating in the SRS also offers a convenient way for parents to source the items that their child needs for school, and ensures that all students have access to the same standard of resources.",null,null,null,null,"Term instalment amount (over 3 terms):","$100 + $75 + $75"]
[]
[]
[null,null,null,null,null,"Insert here the name and contact details for the school contact for SRS queries:","Ipswich State High School - Finance 3813 4462"]
[]
["The types of resources that will be included are: "]
[]
["g Owned by the student – e.g. student diary – once provided, these items are \n       retained by the student and used at  their discretion. "]
[]
["g Hired to the student for a specific duration of time – e.g. textbooks or musical \n       instruments–these items will need to be returned to the school in reasonable \n       condition at the end of the hire period or if the student leaves the school. "]
[]
[]
["g Used in class – e.g. stationery, timber, material, workbooks – these items will be \n       used in class. Finished products that are created from these resources will \n       generally come home with the student."]
[]
[]
[]
["The Fee"]
[{"$f":"G6","v":"2026 School Fees Yr 12"}]
[]
[]
[]
["If you are not satisfied that the SRS fee represents good value for money based on the inclusions (over the page), you may choose not to participate in the SRS. If that is the case, please complete a new Participation Agreement Form, indicating that you no longer wish to participate. If you choose not to participate, you will be provided with a detailed list of resources that you will need to provide for the student."]
[]
[]
[]
[]
[]
[]
[]
[]
["The TRA"]
["The Department of Education provides a Textbook and Resource Allowance (TRA) to assist parents with the cost of textbooks and other education resources for eligible Years 7 to 12 students. "]
[]
[]
["For those students who are eligible to receive the TRA, the TRA will be applied to reduce the cost of participation as shown in the table below. Thus the SRS invoice you receive will be the full cost of participation in the SRS minus the TRA already held at the school."]
[]
[]
[]
["Please be aware that there may be two lines of charges on your invoice indicating the GST inclusive and GST exclusive fees depending on the resources supplied by the SRS ."]
[]
[]
["Cost Breakdown"]
["The diagrams below reflect how the TRA has been deducted from the SRS fee for eligible students who have opted in to the Curriculum SRS."]
[]
["Cost of SRS","TRA","SRS invoice"]
[{"$f":"G11","v":587},{"$f":"G13","v":337},{"$f":"G15","v":250}]
[]
[]
["If you have opted to pay the SRS by term instalments you will be invoiced once per term: $100 term 1 and $75 Term 2 and $75 Term 3 "]
[]
[]
[]
["Financial Difficulty"]
["If you would like to participate, but are experiencing financial difficulties, please contact the school to arrange an appointment to discuss options. Any information that you provide will be confidential."]
[]
[]
["Release of resources"]
["Resources will not be distributed until the full or first payment has been paid to the school. Any unpaid invoices, will be managed according to the department’s Debt Management Procedure and may result in the student being excluded from the scheme and/or from participating in extra-curricular activities until payments are made."]
[]
[]
[]
[]
["Return of hired resources"]
["A repair or replacement cost will be charged to the parent for any items that are damaged or not returned."]
[]
[]
["Contact us"]
["If you have any queries regarding the SRS and its inclusions, please contact and arrange an appointment with:\n                                                             "]
[]
[{"$f":"G20","v":"Ipswich State High School - Finance 3813 4462"}]
[]
[]
["The Curriculum Student Resource Scheme Inclusions "]
[]
["The Curriculum Student Resource Scheme (SRS) is made up of three components. The three components are general items, resources for core subjects and resources for elective subjects. The tables below detail the SRS inclusions for these three components."]
[]
[]
[]
["General Items","Resource","Type of Resource"," Acquisition cost","Value (to parent) "]
["General items"]
[null,"Printing Credit","Owned",10,10]
["Grand Total",null,null,10,10]
[]
[]
[]
[]
[]
["Subject","Resource","Type of Resource","Acquisition cost "," Value (to parent)"]
["Drama"]
[null,"48 Shades of Brown","Hired ",23,7.67]
[null,"Medea","Hired ",9.9499999999999993,3.32]
[null,"Indigenous Plays Compilation","Hired ",34.950000000000003,11.65]
[null,"Greek Plays Compilation","Hired ",34.950000000000003,11.65]
[null,"Taming of the Shrew","Hired ",17.95,5.98]
[null,"Midsummer Nights Dream","Hired ",14.95,4.9800000000000004]
["English"]
[null,"Hamlet/ Macbeth DVD","Hired ",18,0.72]
[null,"Remember the Titans DVD","Hired ",18,0.72]
[null,"Bend it like Beckham DVD","Hired ",18,0.72]
[null,"Fahrenheit 451","Hired",15,3]
[null,"Fahrenheit 451 DVD ","Hired 2",18,3]
["Maths"]
[null,"New Q Maths 12A","Hired",54,18]
[null,"New Q Maths 12B","Hired",54,18]
[null,"New Q Maths 12C","Hired",54,18]
[null,"Graphics Calculator","Hired",179,7.16]
["Science"]
[null,"Assorted books starting at $54.00","Hired",54,18]
["Maths 12A"]
[null,"Future Maths 12A","Hired",45.39,15.13]
[null,"Future Maths 11A","Hired",45.39,15.13]
["Maths 12B"]
[null,"Maths Quest","Hired",49.95,16.649999999999999]
["LOTE - Japanese"]
[null,"Mirai Course Book 5","Hired",29.05,9.68]
[null,"Mirai Activity Book 5","Hired",29.05,9.68]
[null,"Mirai Course Book 6","Hired",29.05,9.68]
[null,"Mirai Activity Book 6","Hired",29.05,9.68]
[null,"Japanese Dictionary","Hired",20.83,6.94]
["Ancient & Modern History"]
[null,"Chronicles investigating the ancient world 1","Hired",57.95,19.32]
[null,"Chronicles investigating the ancient world 2","Hired",57.95,19.32]
[null,"Ancient Rome: using evidence","Hired",69.95,23.32]
[null,"Inquiry 1","Hired",94.95,31.65]
[null,"Inquiry 2","Hired",94.95,31.65]
[null,"Global voices 1","Hired",74.95,24.98]
[null,"Global voices 2","Hired",74.95,24.98]
["Geography"]
[null,"Jacaranda Atlas","Hired",51.96,17.32]
[null,"Senior Geography 1","Hired",79.95,26.65]
[null,"Senior Geography 2","Hired",79.95,26.65]
["Music "]
[null,"Assorted Music Books ranging from $11.95 each","Hired",11.95,3.98]
["Accounting"]
[null,"Accounting: an introductory framework","Hired",69.59,23.2]
["Legal Studies"]
[null,"Legal Studies for Queensland Book 1","Hired",77,25.67]
["Biology"]
[null,"Biology: a contextual approach","Hired",105.95,35.32]
[null,"Marine Science","Hired",77,25.67]
["HPE"]
[null,"PE Senior Physical Education","Hired",84.95,28.32]
[null,"Photocopying /health consumables ","Hired ",25,25]
[null,"Senior Digital tetbook ","Used ",30,30]
["Physics"]
[null,"New Century Senior Physics","Hired",109.95,36.65]
["Aquatic Practices"]
[null,"Marine Science","Hired",77,25.67]
["Chemistry"]
[null,"Chemistry in Use 1","Hired",86.95,28.98]
[null,"Foundations in Chemistry","Hired",34.5,11.5]
["Film, Television & Media"]
[null,"Assorted movies and TV series ","Hired ",15,0.6]
["Online curriculum"]
[null,"Turnit itn, clickview, Daymap curriculum, Track Ed, Adobe, Ed perfect","Hired ",100,100]
["Electrotechnology"]
[null,"Consumables ","Hired ",100,100]
["Year 12 TTC"]
[null,"Consumables","Used ",250,250]
["DAT - 1 Day program"]
[null,"Consumables","Hired ",150,150]
["Digital Technology - ICJ"]
[null,"Consumables ","Hired ",20,20]
["Hair and Beauty - Beauty "]
[null,"Consumables","Hired ",700,700]
["Hair and Beauty - Nails"]
[null,"Consumables","Hired ",800,800]
["hair and Beauty - Hair"]
[null,"Consumables ","Hired ",500,500]
["English "]
[null,"Beauty and the Beast DVD ","Hired 2",18,3]
[null,"Twelfth Nigh Play text ","Hired 2",21,7]
[null,"Twelfth Night play textbook ","Hired",30,10]
["Home Economics"]
[null,"photocopying ","Used ",20,20]
["Home Ec/Hospitality "]
[null,"cooking ingredients ","Used ",60,60]